bitfinex-derivatives/quotes_BTCF0:USTF0_20210105
["timestamp","ask_amount","ask_price","bid_price","bid_amount"]
[1609868558266,0.12458,32461.0,32451.0,0.13632608]
[1609868558468,0.13441,32471.0,32460.0,0.13632608]
[1609868560367,0.13441,32471.0,32470.0,0.13632608]
[1609868560568,0.13441,32471.0,32470.0,0.73702608]
[1609868563874,0.13632608,32472.0,32470.0,0.73702608]
[1609868564273,0.13632608,32472.0,32453.0,0.10998]
[1609868564475,0.13632608,32465.0,32464.0,0.13632608]
[1609868564973,0.13632608,32465.0,32464.0,0.82762608]
[1609868566276,0.13632608,32465.0,32464.0,0.13632608]
[1609868572289,0.27412608,32465.0,32464.0,0.13632608]
[1609868572487,0.27412608,32465.0,32444.0,0.12462]
[1609868572887,0.27412608,32465.0,32443.0,2.18185987]
[1609868573287,0.27412608,32465.0,32439.0,2.18530602]
[1609868573288,4.7998,32462.0,32439.0,2.18530602]
[1609868574488,4.7998,32462.0,32448.0,0.13632608]
[1609868576192,0.2864,32464.0,32448.0,0.13632608]
[1609868576392,0.13632608,32449.0,32448.0,0.13632608]
[1609868580298,0.09952,32450.0,32448.0,0.75532608]
[1609868580500,0.09952,32450.0,32448.0,0.13632608]
[1609868580699,0.09952,32450.0,32449.0,4.553]
[1609868581099,0.13632608,32458.0,32449.0,4.553]
[1609868581499,0.2864,32464.0,32449.0,4.553]
[1609868582500,0.2864,32464.0,32458.0,0.13632608]
[1609868584403,0.13632608,32459.0,32458.0,0.13632608]
[1609868595527,0.13632608,32459.0,32449.0,4.553]
[1609868595826,0.13632608,32459.0,32443.0,2.30622729]
[1609868596027,0.13632608,32459.0,32445.0,5.0162]
[1609868596430,0.2864,32464.0,32448.0,0.13632608]
[1609868598430,0.13632608,32449.0,32448.0,0.13632608]
[1609868606242,0.12531,32453.0,32448.0,0.13632608]
[1609868606443,0.13632608,32456.0,32452.0,0.13632608]
[1609868606942,0.26586608,32456.0,32452.0,0.13632608]
[1609868611648,0.26586608,32456.0,32453.0,0.6758]
[1609868626669,0.26586608,32456.0,32444.0,0.13632608]
[1609868626869,4.9728,32454.0,32444.0,0.13632608]
[1609868627668,4.9728,32454.0,32443.0,5.1736]
[1609868628673,0.13632608,32444.0,32443.0,5.1736]
[1609868629272,0.26180608,32444.0,32443.0,5.1736]
[1609868636785,0.26180608,32444.0,32443.0,5.30992608]
[1609868641386,0.26180608,32444.0,32443.0,0.13632608]
[1609868642288,0.26180608,32444.0,32443.0,3.60002608]
[1609868644391,0.26180608,32444.0,32443.0,3.4637]
[1609868646895,0.26180608,32444.0,32443.0,3.60002608]
[1609868658707,0.26180608,32444.0,32443.0,0.13632608]
[1609868659208,0.26180608,32444.0,32443.0,4.91192608]
[1609868661909,0.2995,32452.0,32443.0,4.91192608]
[1609868662110,0.11771,32449.0,32443.0,4.91192608]
[1609868663317,0.11771,32449.0,32448.0,0.13632608]
[1609868663512,0.11771,32449.0,32448.0,4.88902608]
[1609868663915,0.2807,32464.0,32448.0,4.88902608]
[1609868664113,0.2807,32464.0,32448.0,0.13632608]
[1609868664313,0.2807,32464.0,32463.0,5.0848]
[1609868664513,0.1378,32465.0,32463.0,5.0848]
[1609868664713,0.02865661,32466.0,32463.0,5.0848]
[1609868665314,0.02865661,32466.0,32465.0,0.13632608]
[1609868666214,0.02864786,32470.0,32465.0,0.13632608]
[1609868669319,0.13632608,32468.0,32465.0,0.13632608]
[1609868675923,0.13632608,32468.0,32467.0,5.0207]
[1609868682327,0.13632608,32468.0,32465.0,0.13632608]
[1609868686735,0.13632608,32468.0,32451.0,0.09952]
[1609868686934,4.8454,32467.0,32456.0,4.4314]
[1609868687833,0.13632608,32457.0,32456.0,4.4314]
[1609868689936,0.13632608,32457.0,32446.0,0.13632608]
[1609868690137,0.13632608,32457.0,32449.0,4.3055]
[1609868691737,0.13632608,32450.0,32449.0,4.3055]
[1609868693642,0.13632608,32450.0,32446.0,0.13632608]
[1609868696046,0.73702608,32450.0,32446.0,0.13632608]
[1609868697548,0.13632608,32450.0,32432.0,2.16745317]
[1609868697746,0.13632608,32445.0,32438.0,0.13632608]
[1609868699752,3.9272,32458.0,32442.0,4.6338]
[1609868701754,0.13632608,32443.0,32442.0,4.6338]
[1609868702053,0.13632608,32443.0,32438.0,0.13632608]
[1609868703853,0.13632608,32443.0,32442.0,0.13632608]
[1609868716072,0.72222608,32443.0,32442.0,0.13632608]
[1609868718577,0.72155471,32443.0,32442.0,0.13632608]
[1609868720976,0.81217471,32443.0,32442.0,0.13632608]
[1609868722679,0.22627471,32443.0,32442.0,0.13632608]
[1609868724582,0.22627471,32443.0,32442.0,0.80132608]
[1609868725283,0.09062,32443.0,32442.0,0.80132608]
[1609868726084,0.12223,32451.0,32442.0,0.80132608]
[1609868726287,0.13632608,32458.0,32450.0,0.13632608]
[1609868727086,0.13632608,32458.0,32453.0,5.1588]
[1609868727286,0.13632608,32458.0,32450.0,0.13632608]
[1609868727487,0.14914,32464.0,32454.0,5.1641]
[1609868727688,5.0746833,32472.0,32454.0,5.1641]
[1609868727889,5.06511,32472.0,32454.0,5.1641]
[1609868728192,0.13632608,32463.0,32460.0,0.13632608]
[1609868731297,0.13632608,32463.0,32461.0,4.3501]
[1609868734798,0.09719,32464.0,32461.0,4.3501]
[1609868734998,0.11021,32472.0,32461.0,4.3501]
[1609868735200,0.29137963,32475.0,32460.0,0.13632608]
[1609868735401,0.2818,32475.0,32463.0,4.0771]
[1609868736301,0.2818,32475.0,32470.0,0.13632608]
[1609868737403,0.2818,32475.0,32470.0,0.78112608]
[1609868738205,0.13632608,32471.0,32470.0,0.78112608]
[1609868746712,0.10128,32473.0,32470.0,0.78112608]
[1609868746913,0.00957831,32485.0,32470.0,0.13632608]
[1609868747513,0.00957831,32485.0,32478.0,4.9838]
[1609868747716,0.00958209,32484.0,32478.0,4.9838]
[1609868747913,0.13227209,32484.0,32478.0,4.9838]
[1609868748213,0.12269,32484.0,32478.0,4.9838]
[1609868748414,0.12269,32484.0,32480.0,0.13632608]
[1609868749015,0.12269,32484.0,32483.0,4.4247]
[1609868749816,0.12269,32484.0,32480.0,0.13632608]
[1609868750017,3.79339,32484.0,32480.0,0.13632608]
[1609868750418,0.13632608,32481.0,32480.0,0.13632608]
[1609868750619,0.13632608,32481.0,32480.0,4.69002608]
[1609868750918,0.12269,32484.0,32480.0,4.69002608]
[1609868752318,0.25901608,32484.0,32480.0,4.69002608]
[1609868753022,0.25901608,32484.0,32480.0,0.13632608]
[1609868754223,0.25901608,32484.0,32480.0,4.23512608]
[1609868758829,0.25901608,32484.0,32480.0,0.13632608]
[1609868764038,0.12269,32484.0,32483.0,3.641]
[1609868764237,0.12339,32494.0,32483.0,3.641]
[1609868764438,0.13632608,32499.0,32493.0,0.13632608]
[1609868764838,0.13632608,32499.0,32498.0,4.4093]
[1609868765038,0.00953514,32503.0,32498.0,4.4093]
[1609868765639,0.6362,32500.0,32498.0,4.4093]
[1609868766038,0.6362,32500.0,32494.0,0.09181]
[1609868766440,0.6362,32500.0,32499.0,0.13632608]
[1609868768241,0.216,32500.0,32499.0,0.13632608]
[1609868769044,0.00953514,32503.0,32499.0,0.13632608]
[1609868769243,0.00953514,32503.0,32499.0,0.22862608]
[1609868769946,0.00952468,32501.0,32499.0,0.22862608]
[1609868770746,0.00952468,32501.0,32499.0,0.13632608]
[1609868771647,0.00952468,32501.0,32500.0,0.0918]
[1609868772146,0.00952468,32501.0,32499.0,0.13632608]
[1609868772547,5.52572425,32507.0,32499.0,0.13632608]
[1609868772548,4.7038,32507.0,32499.0,0.13632608]
[1609868772747,0.13632608,32520.0,32499.0,0.13632608]
[1609868774150,0.11251,32526.0,32499.0,0.13632608]
[1609868774548,0.13632608,32525.0,32523.0,0.13632608]
[1609868786062,0.13632608,32525.0,32524.0,4.5945]
[1609868786862,0.13632608,32525.0,32523.0,0.13632608]
[1609868787064,4.16372608,32525.0,32523.0,0.13632608]
[1609868787862,4.16372608,32525.0,32519.0,0.10599]
[1609868788664,0.13632608,32520.0,32519.0,0.10599]
[1609868788863,0.13632608,32520.0,32511.0,0.13632608]
[1609868789063,4.85862608,32520.0,32511.0,0.13632608]
[1609868790668,0.13632608,32512.0,32511.0,0.13632608]
[1609868794878,0.82672608,32512.0,32499.0,4.727]
[1609868795079,0.13632608,32512.0,32487.0,0.098]
[1609868795280,4.8616,32507.0,32487.0,0.098]
[1609868795477,4.8616,32507.0,32479.0,4.759]
[1609868796578,0.13632608,32498.0,32495.0,0.13632608]
[1609868802483,0.09343,32514.0,32497.0,4.3129]
[1609868802683,0.2887,32522.0,32513.0,0.13632608]
[1609868802883,0.24821608,32523.0,32513.0,0.13632608]
[1609868803084,0.11189,32523.0,32522.0,4.6551]
[1609868803486,0.00390046,32528.0,32522.0,4.6551]
[1609868803686,0.00390046,32528.0,32513.0,0.13632608]
[1609868803885,0.00390046,32528.0,32514.0,0.0915]
[1609868804291,0.66883649,32532.0,32514.0,0.0915]
[1609868804488,0.02393235,32529.0,32528.0,3.913]
[1609868804687,0.54422621,32530.0,32528.0,4.16584608]
[1609868804887,0.53082621,32530.0,32528.0,4.16584608]
[1609868805089,0.45802621,32530.0,32528.0,4.16584608]
[1609868805290,0.33072621,32530.0,32528.0,4.16584608]
[1609868805487,0.22292621,32530.0,32528.0,4.16584608]
[1609868805687,0.14102621,32530.0,32528.0,4.16584608]
[1609868805888,0.12102621,32530.0,32529.0,0.0923]
[1609868806389,0.66786323,32533.0,32529.0,0.0923]
[1609868806588,0.59416323,32533.0,32532.0,0.13632608]
[1609868807289,0.81623607,32536.0,32532.0,0.13632608]
[1609868807588,0.78543607,32536.0,32532.0,0.13632608]
[1609868807789,0.77553607,32536.0,32532.0,0.22752608]
[1609868808990,0.77553607,32536.0,32532.0,0.13632608]
[1609868809593,5.0482,32554.0,32532.0,0.13632608]
[1609868809791,0.2697,32562.0,32528.0,0.11652]
[1609868809991,0.2697,32562.0,32534.0,4.9326]
[1609868810392,0.0912,32561.0,32534.0,5.05461]
[1609868810590,0.13632608,32535.0,32534.0,0.12201]
[1609868810991,0.1488,32561.0,32534.0,0.12201]
[1609868812193,0.2417,32561.0,32534.0,0.12201]
[1609868812391,0.1488,32561.0,32534.0,0.12201]
[1609868812591,0.13632608,32548.0,32543.0,0.13632608]
[1609868814397,0.13632608,32548.0,32534.0,0.12201]
[1609868814801,0.13632608,32535.0,32533.0,0.13632608]
[1609868815197,0.13484,32542.0,32533.0,0.13632608]
[1609868815397,0.13484,32542.0,32537.0,4.1264]
[1609868816199,5.17731555,32578.0,32537.0,4.1264]
[1609868816398,0.284,32570.0,32537.0,4.1264]
[1609868816799,0.284,32570.0,32560.0,0.13632608]
[1609868817599,0.0915,32569.0,32560.0,0.13632608]
[1609868817805,0.284,32570.0,32560.0,0.13632608]
[1609868818502,0.284,32570.0,32560.0,0.12002608]
[1609868818702,0.13632608,32561.0,32560.0,0.05052608]
[1609868818901,0.27585608,32561.0,32560.0,0.05052608]
[1609868819303,0.27585608,32561.0,32546.0,4.8417]
[1609868820704,0.13953,32561.0,32547.0,0.13632608]
[1609868821411,0.13953,32561.0,32546.0,4.8417]
[1609868822708,0.13632608,32555.0,32549.0,0.13632608]
[1609868824609,0.13953,32561.0,32549.0,0.13632608]
[1609868824809,0.13632608,32559.0,32554.0,0.13632608]
[1609868826809,0.13632608,32555.0,32554.0,0.13632608]
[1609868828310,0.13632608,32555.0,32546.0,4.8417]
[1609868828912,0.11534,32560.0,32549.0,0.13632608]
[1609868830012,0.3771,32570.0,32549.0,0.13632608]
[1609868830214,0.284,32570.0,32549.0,0.13632608]
[1609868830614,0.284,32570.0,32553.0,3.6669]
[1609868830815,0.284,32570.0,32557.0,0.13632608]
[1609868832719,0.13632608,32558.0,32557.0,0.13632608]
[1609868835223,0.12272,32563.0,32548.0,3.5291]
[1609868836722,0.12272,32563.0,32557.0,0.13632608]
[1609868838026,0.284,32570.0,32557.0,0.13632608]
[1609868838727,0.13632608,32558.0,32557.0,0.13632608]
[1609868839330,0.14294,32560.0,32557.0,0.13632608]
[1609868839931,0.14294,32560.0,32558.0,3.9644]
[1609868840128,0.14294,32560.0,32557.0,0.13632608]
[1609868840932,0.14294,32560.0,32559.0,4.4876]
[1609868843034,0.2729,32571.0,32559.0,4.4876]
[1609868844835,0.2729,32571.0,32570.0,0.13632608]
[1609868846036,0.2729,32571.0,32559.0,4.4876]
[1609868846237,0.38405,32571.0,32553.0,0.12635]
[1609868846837,0.13632608,32562.0,32561.0,0.13632608]
[1609868847837,0.13632608,32562.0,32549.0,4.3969]
[1609868848440,0.13632608,32562.0,32525.0,2.1108326]
[1609868848640,0.13632608,32562.0,32536.0,4.583]
[1609868848839,0.1456,32564.0,32546.0,0.13632608]
[1609868850141,0.0934,32563.0,32546.0,0.13632608]
[1609868850742,0.13632608,32547.0,32546.0,0.13632608]
[1609868852641,0.13632608,32547.0,32536.0,4.583]
[1609868852842,0.1069,32550.0,32538.0,0.13632608]
[1609868853845,0.1069,32550.0,32544.0,4.953]
[1609868854044,0.1456,32564.0,32543.0,0.12042]
[1609868854243,0.1456,32564.0,32559.0,4.3949]
[1609868854443,0.11115,32571.0,32559.0,4.3949]
[1609868854648,0.66671667,32582.0,32559.0,4.3949]
[1609868854649,0.55636518,32572.0,32559.0,4.3949]
[1609868854844,0.55636518,32572.0,32571.0,0.13632608]
[1609868855044,0.2783,32579.0,32571.0,0.13632608]
[1609868855243,0.2783,32579.0,32571.0,4.30752608]
[1609868855444,0.2277,32579.0,32571.0,4.30752608]
[1609868855644,0.2028,32579.0,32571.0,4.30752608]
[1609868856145,0.2028,32579.0,32571.0,0.13632608]
[1609868856746,0.2028,32579.0,32578.0,0.13632608]
[1609868862650,0.2028,32579.0,32578.0,0.64402608]
[1609868862850,0.2028,32579.0,32578.0,0.13632608]
[1609868864053,0.2028,32579.0,32578.0,4.04252608]
[1609868868962,0.2028,32579.0,32578.0,0.13632608]
[1609868877070,0.2028,32579.0,32577.0,3.8852]
[1609868881074,0.13632608,32578.0,32577.0,3.8852]
[1609868881877,0.13632608,32578.0,32568.0,0.09456]
[1609868882275,0.13632608,32578.0,32565.0,3.741]
[1609868883075,0.13632608,32578.0,32577.0,0.13632608]
[1609868886181,0.13632608,32578.0,32577.0,5.24922608]
[1609868891185,0.13632608,32578.0,32577.0,5.1129]
[1609868892787,0.13632608,32578.0,32573.0,0.13632608]
[1609868892989,0.13632608,32578.0,32567.0,4.7193]
[1609868893190,0.13632608,32568.0,32565.0,0.13632608]
[1609868893990,0.13632608,32568.0,32554.0,3.8081]
[1609868895193,0.11836,32573.0,32560.0,0.13632608]
[1609868897194,0.11836,32573.0,32569.0,0.13632608]
[1609868897593,0.11836,32573.0,32571.0,3.7091]
[1609868898195,0.11836,32573.0,32569.0,0.13632608]
[1609868898595,0.2825,32579.0,32569.0,0.13632608]
[1609868899196,0.13632608,32570.0,32564.0,0.13632608]
[1609868901302,0.13632608,32565.0,32564.0,0.13632608]
[1609868903104,0.13632608,32565.0,32561.0,5.0669]
[1609868903303,0.13632608,32565.0,32556.0,0.13632608]
[1609868903501,0.23029608,32565.0,32556.0,0.13632608]
[1609868905303,0.13632608,32557.0,32556.0,0.13632608]
[1609868906403,0.09397,32565.0,32556.0,0.13632608]
[1609868907205,0.09397,32565.0,32564.0,0.13632608]
[1609868908604,0.11732,32573.0,32564.0,0.13632608]
[1609868908805,0.7646241,32583.0,32564.0,0.13632608]
[1609868909205,0.13632608,32565.0,32564.0,0.13632608]
[1609868909505,0.24297608,32565.0,32564.0,0.13632608]
[1609868912711,0.24297608,32565.0,32560.0,5.1533]
[1609868913212,0.13632608,32561.0,32560.0,5.1533]
[1609868923426,0.10665,32565.0,32560.0,5.1533]
[1609868923625,0.09794,32572.0,32560.0,5.1533]
[1609868923826,0.12796,32580.0,32560.0,5.1533]
[1609868925430,0.12796,32580.0,32565.0,0.13632608]
[1609868927431,0.13632608,32566.0,32565.0,0.13632608]
[1609868927831,0.13632608,32566.0,32565.0,5.26902608]
[1609868942250,0.14361,32573.0,32565.0,5.26902608]
[1609868942650,0.12796,32580.0,32572.0,4.3787]
[1609868943451,0.12796,32580.0,32578.0,0.13632608]
[1609868943851,0.12796,32580.0,32578.0,3.80822608]
[1609868944052,0.0919,32589.0,32578.0,3.80822608]
[1609868944653,0.09728,32590.0,32578.0,3.80822608]
[1609868944854,0.56322729,32594.0,32578.0,3.80822608]
[1609868945054,0.2736,32595.0,32578.0,3.80822608]
[1609868945455,0.2736,32595.0,32587.0,0.13632608]
[1609868945653,0.2736,32595.0,32589.0,0.6101]
[1609868945854,0.2736,32595.0,32587.0,0.13632608]
[1609868946056,0.2736,32595.0,32572.0,0.14375]
[1609868946057,0.2736,32595.0,32582.0,3.6532]
[1609868946256,0.40648,32595.0,32582.0,3.6532]
[1609868947555,0.13632608,32583.0,32582.0,3.6532]
[1609868947755,0.22952608,32583.0,32574.0,0.13632608]
[1609868947956,0.28566608,32583.0,32574.0,0.13632608]
[1609868949556,0.13632608,32575.0,32574.0,0.13632608]
[1609868950158,0.25824608,32575.0,32574.0,0.13632608]
[1609868953562,0.12192,32575.0,32574.0,0.13632608]
[1609868954862,0.14934,32583.0,32574.0,0.13632608]
[1609868955062,0.56300303,32591.0,32574.0,0.13632608]
[1609868955562,0.13632608,32575.0,32574.0,0.13632608]
[1609868964572,0.13632608,32575.0,32560.0,0.10503]
[1609868964774,3.71902608,32575.0,32554.0,7.20485919]
[1609868964972,5.21902608,32575.0,32554.0,7.20485919]
[1609868965173,5.21902608,32575.0,32554.0,5.09]
[1609868965373,3.71902608,32575.0,32554.0,5.09]
[1609868965573,0.13632608,32555.0,32554.0,5.09]
[1609868965774,0.13632608,32555.0,32550.0,0.13632608]
[1609868967178,0.13632608,32555.0,32554.0,4.0931]
[1609868971580,0.13632608,32555.0,32554.0,4.22942608]
[1609868972281,0.13632608,32555.0,32545.0,0.11842]
[1609868972481,0.13632608,32555.0,32543.0,4.5423]
[1609868973582,0.09876,32556.0,32550.0,0.13632608]
[1609868975083,0.09876,32556.0,32553.0,3.6737]
[1609868975683,0.13632608,32554.0,32553.0,3.6737]
[1609868980892,0.13632608,32554.0,32550.0,0.13632608]
[1609868983194,0.13632608,32554.0,32550.0,0.70372608]
[1609868985896,0.13632608,32554.0,32550.0,0.13632608]
[1609868986196,0.13632608,32554.0,32540.0,3.4828]
[1609868987798,0.09876,32556.0,32543.0,0.13632608]
[1609868987999,5.018,32557.0,32543.0,0.13632608]
[1609868988200,5.11,32557.0,32540.0,3.4828]
[1609868988399,5.2189,32557.0,32540.0,3.4828]
[1609868988602,0.2009,32557.0,32530.0,2.1137848]
[1609868988801,4.39174,32550.0,32530.0,2.1137848]
[1609868989803,0.13632608,32531.0,32530.0,2.1137848]
[1609868990203,0.13632608,32531.0,32530.0,2.1098848]
[1609868993310,0.13632608,32531.0,32528.0,0.13632608]
[1609868994715,0.13632608,32531.0,32529.0,0.6603]
[1609868994913,0.13632608,32531.0,32528.0,0.13632608]
[1609868995113,0.13632608,32531.0,32530.0,4.8687]
[1609868998318,0.13632608,32531.0,32528.0,0.13632608]
[1609868998519,0.13493,32537.0,32528.0,0.13632608]
[1609868998718,3.8404,32546.0,32528.0,0.13632608]
[1609868999020,3.8404,32546.0,32529.0,0.7314]
[1609868999220,0.2723,32547.0,32528.0,0.13632608]
[1609868999422,0.2723,32547.0,32530.0,3.4826]
[1609868999821,0.2723,32547.0,32536.0,0.13632608]
[1609869000825,0.0929,32546.0,32536.0,0.13632608]
[1609869001625,0.0929,32546.0,32526.0,4.1892]
[1609869001826,0.0929,32546.0,32531.0,0.13632608]
[1609869003928,0.13632608,32532.0,32531.0,0.13632608]
[1609869004129,0.22822608,32532.0,32531.0,0.13632608]
[1609869004328,0.32386608,32532.0,32531.0,0.13632608]
[1609869004529,0.23196608,32532.0,32531.0,0.13632608]
[1609869005730,0.23196608,32532.0,32526.0,4.1892]
[1609869005931,0.09564,32532.0,32527.0,0.13632608]
[1609869007831,0.13632608,32528.0,32527.0,0.13632608]
[1609869009433,0.13632608,32528.0,32526.0,4.1892]
[1609869015741,0.13632608,32528.0,32516.0,0.12162]
[1609869015942,0.09564,32532.0,32511.0,4.9257]
[1609869016142,4.7645,32535.0,32511.0,4.9257]
[1609869017844,0.13632608,32520.0,32517.0,0.13632608]
[1609869018143,0.13632608,32520.0,32518.0,0.5579]
[1609869018343,0.13632608,32520.0,32517.0,0.13632608]
[1609869018544,0.13632608,32520.0,32519.0,3.8397]
[1609869019247,0.09815,32527.0,32519.0,3.8397]
[1609869019947,0.09815,32527.0,32526.0,0.13632608]
[1609869020647,0.09815,32527.0,32525.0,3.5062]
[1609869022048,0.13632608,32526.0,32525.0,3.5062]
[1609869026970,0.13282,32534.0,32525.0,3.5062]
[1609869027167,0.2723,32547.0,32525.0,3.5062]
[1609869027364,0.0284073,32549.0,32524.0,0.13632608]
[1609869027560,0.0284073,32549.0,32545.0,3.6343]
[1609869027761,0.14034,32550.0,32545.0,3.6343]
[1609869027960,0.14034,32550.0,32549.0,0.13632608]
[1609869028159,0.1089,32557.0,32549.0,0.13632608]
[1609869028359,0.00953267,32559.0,32549.0,0.13632608]
[1609869028560,0.07868641,33473.0,32549.0,0.13632608]
[1609869028561,0.00953096,32566.0,32549.0,0.13632608]
[1609869028759,0.00953096,32566.0,32559.0,3.7327]
[1609869029164,0.00952976,32571.0,32559.0,3.7327]
[1609869030061,0.00952976,32571.0,32567.0,0.13632608]
[1609869031462,0.00952976,32571.0,32568.0,0.7151]
[1609869031764,0.2971,32575.0,32568.0,0.7151]
[1609869031962,0.13632608,32569.0,32568.0,0.7151]
[1609869037667,0.13632608,32569.0,32547.0,0.12615]
[1609869038065,0.13632608,32564.0,32562.0,0.13632608]
[1609869040067,0.13632608,32564.0,32558.0,0.13632608]
[1609869041869,0.13632608,32564.0,32557.0,4.8055]
[1609869042068,0.13632608,32558.0,32557.0,4.8055]
[1609869048978,0.13632608,32558.0,32554.0,0.23633608]
[1609869051081,0.13632608,32558.0,32554.0,0.10001]
[1609869051281,0.13632608,32558.0,32548.0,3.7921]
[1609869052181,0.13632608,32549.0,32548.0,3.92842608]
[1609869056785,0.13632608,32549.0,32548.0,0.13632608]
[1609869060486,0.13632608,32549.0,32540.0,4.50787]
[1609869061489,0.13632608,32549.0,32540.0,0.10877]
[1609869061687,0.13632608,32549.0,32531.0,5.0795]
[1609869062288,3.9571,32550.0,32532.0,0.13632608]
[1609869062888,3.9571,32550.0,32533.0,0.0919]
[1609869063090,3.9571,32550.0,32532.0,0.13632608]
[1609869064290,0.13632608,32533.0,32532.0,0.13632608]
[1609869064689,0.13632608,32533.0,32531.0,5.18548]
[1609869064892,0.13632608,32533.0,32532.0,0.0911]
[1609869065291,0.13632608,32533.0,32531.0,5.18548]
[1609869066791,0.13632608,32533.0,32531.0,5.27808]
[1609869066994,0.13632608,32533.0,32531.0,5.18548]
[1609869067793,0.13632608,32533.0,32531.0,0.10598]
[1609869067992,0.13632608,32533.0,32521.0,5.0131]
[1609869068193,4.5524,32538.0,32523.0,0.13632608]
[1609869068993,4.5524,32538.0,32521.0,5.0131]
[1609869069193,0.14013,32540.0,32513.0,2.09174065]
[1609869069394,4.1543,32537.0,32513.0,2.09174065]
[1609869069795,0.14013,32540.0,32513.0,2.09174065]
[1609869069994,4.1091,32533.0,32513.0,2.09174065]
[1609869070197,4.1091,32533.0,32517.0,0.13632608]
[1609869072198,0.2959,32539.0,32517.0,0.13632608]
[1609869072397,0.2959,32539.0,32521.0,4.2967]
[1609869072797,0.2959,32539.0,32521.0,4.41226]
[1609869074204,0.2959,32539.0,32528.0,0.13632608]
[1609869074408,0.2959,32539.0,32528.0,0.83712608]
[1609869076304,0.13632608,32529.0,32528.0,0.13632608]
[1609869076504,0.2959,32539.0,32528.0,5.10762608]
[1609869076704,0.2959,32539.0,32529.0,0.0921]
[1609869077305,0.00391776,32557.0,32529.0,0.0921]
[1609869078206,0.2848,32558.0,32546.0,0.13632608]
[1609869078609,0.2848,32558.0,32547.0,4.3967]
[1609869080310,0.13632608,32548.0,32547.0,4.3967]
[1609869087720,0.13632608,32548.0,32546.0,0.13632608]
[1609869089622,0.13632608,32548.0,32547.0,4.9195]
[1609869100037,0.13632608,32548.0,32546.0,0.13632608]
[1609869101340,0.13632608,32548.0,32547.0,4.9227]
[1609869104343,0.14648,32566.0,32547.0,4.9227]
[1609869104746,0.14648,32566.0,32551.0,0.13632608]
[1609869105746,0.2888,32568.0,32551.0,0.13632608]
[1609869106748,0.13632608,32552.0,32551.0,0.13632608]
[1609869111957,0.13632608,32552.0,32551.0,0.73292608]
[1609869120671,0.13632608,32552.0,32551.0,0.5966]
[1609869127181,0.13632608,32552.0,32550.0,0.11338]
[1609869127384,5.00382608,32552.0,32543.0,0.10339]
[1609869127583,5.00382608,32552.0,32536.0,4.4313]
[1609869127784,4.8078,32544.0,32532.0,2.0535883]
[1609869127984,0.2937,32551.0,32532.0,2.0535883]
[1609869128187,5.0039,32536.0,32531.0,2.05544744]
[1609869128785,0.13632608,32532.0,32531.0,2.05544744]
[1609869129588,0.13632608,32532.0,32528.0,2.32339473]
[1609869129589,0.13632608,32532.0,32528.0,0.09666]
[1609869129787,0.13632608,32532.0,32526.0,0.13632608]
[1609869130689,0.13632608,32532.0,32521.0,0.11556]
[1609869130888,4.86132608,32522.0,32521.0,0.13632608]
[1609869131088,4.86132608,32522.0,32516.0,2.08524914]
[1609869131289,0.13632608,32522.0,32516.0,2.08524914]
[1609869131488,4.3924,32517.0,32512.0,2.08621041]
[1609869132089,0.13632608,32522.0,32516.0,3.4974]
[1609869132888,0.13632608,32517.0,32516.0,3.63372608]
[1609869135395,0.10582608,32517.0,32516.0,3.63372608]
[1609869135594,0.2991,32537.0,32516.0,0.13632608]
[1609869135794,4.1052,32531.0,32516.0,0.13632608]
[1609869136394,0.2991,32537.0,32516.0,0.13632608]
[1609869136795,0.13632608,32534.0,32528.0,0.13632608]
[1609869137696,0.13632608,32534.0,32529.0,4.7032]
[1609869138296,0.2991,32537.0,32529.0,4.7032]
[1609869138497,0.56224125,32550.0,32529.0,4.7032]
[1609869138697,0.56224125,32550.0,32528.0,0.23701608]
[1609869138898,0.56224125,32550.0,32545.0,0.13632608]
[1609869139099,0.0134893,32548.0,32545.0,0.13632608]
[1609869139299,0.00393438,32548.0,32545.0,0.13632608]
[1609869139900,0.00393438,32548.0,32542.0,0.09604]
[1609869140600,0.2795,32554.0,32542.0,0.09604]
[1609869140800,0.13632608,32543.0,32542.0,0.09604]
[1609869141101,0.13632608,32543.0,32537.0,4.18362608]
[1609869143002,0.13632608,32538.0,32537.0,4.0473]
[1609869144706,0.13632608,32538.0,32535.0,0.12891]
[1609869145104,0.13632608,32538.0,32532.0,0.13632608]
[1609869146906,0.13632608,32533.0,32532.0,0.13632608]
[1609869148109,4.77452608,32533.0,32532.0,0.13632608]
[1609869149411,0.13632608,32533.0,32532.0,0.13632608]
[1609869155419,4.5949,32537.0,32532.0,0.13632608]
[1609869156320,0.11929,32553.0,32532.0,0.13632608]
[1609869156522,0.2795,32554.0,32532.0,0.13632608]
[1609869156922,0.2795,32554.0,32528.0,4.91639]
[1609869156923,0.2795,32554.0,32540.0,0.13632608]
[1609869158926,0.2795,32554.0,32544.0,0.13632608]
[1609869160931,0.13632608,32545.0,32544.0,0.13632608]
[1609869166336,0.13632608,32545.0,32542.0,0.12081]
[1609869166540,0.13632608,32545.0,32535.0,0.10561]
[1609869166737,0.13632608,32545.0,32533.0,4.2542]
[1609869166938,0.13632608,32545.0,32528.0,0.10069]
[1609869167141,0.42946,32554.0,32541.0,0.13632608]
[1609869169040,0.13632608,32542.0,32541.0,0.13632608]
[1609869174647,0.42946,32554.0,32541.0,0.13632608]
[1609869175048,0.42946,32554.0,32550.0,0.13632608]
[1609869177049,0.13632608,32551.0,32550.0,0.13632608]
[1609869180254,0.42946,32554.0,32550.0,4.28682608]
[1609869180451,0.14996,32554.0,32550.0,4.19412608]
[1609869180653,0.10108,32561.0,32550.0,4.19412608]
[1609869181254,0.13632608,32556.0,32555.0,0.13632608]
[1609869181957,0.10108,32561.0,32555.0,0.13632608]
[1609869181958,0.10108,32561.0,32555.0,0.74332608]
[1609869182357,0.2774,32565.0,32555.0,0.74332608]
[1609869183258,0.2774,32565.0,32564.0,0.13632608]
[1609869184058,0.2774,32565.0,32552.0,5.1369]
[1609869184459,0.41274,32565.0,32552.0,5.1369]
[1609869185160,0.41274,32565.0,32560.0,0.13632608]
[1609869187162,0.13632608,32561.0,32560.0,0.13632608]
[1609869188770,0.13632608,32561.0,32552.0,5.1369]
[1609869189167,0.41274,32565.0,32556.0,0.13632608]
[1609869191174,0.13632608,32557.0,32556.0,0.13632608]
[1609869194778,0.13632608,32557.0,32540.0,0.11442]
[1609869194979,3.9394,32550.0,32533.0,2.08934367]
[1609869195178,3.9394,32550.0,32544.0,0.13632608]